fUST/lending_fUST_20260530
["ID","MTS","AMOUNT","RATE_DAILY","PERIOD"]
[423398600,1780084252000,-336.1230398,0.00017262,2]
[423398607,1780084252000,-1354.16066726,0.00017299,2]
[423398605,1780084252000,-733.93,0.00017297,2]
[423398604,1780084252000,-501.61,0.00017297,2]
[423398601,1780084252000,-8503.4998912,0.00017262,2]
[423398603,1780084252000,-1190.38,0.00017297,2]
[423398602,1780084252000,-672.49,0.00017297,2]
[423398599,1780084252000,-336.1230398,0.00017262,2]
[423398606,1780084252000,-583.72924376,0.00017297,2]
[423398608,1780084252000,-1165.05654684,0.00017299,2]
[423398610,1780084252000,-652.51,0.00017299,2]
[423398621,1780084252000,-655.04471341,0.00017301,2]
[423398618,1780084252000,-1811.5278547,0.00017301,2]
[423398622,1780084252000,-606.80608683,0.00017301,2]
[423398620,1780084252000,-2345.73069138,0.00017301,2]
[423398641,1780084252000,-635.58479996,0.0001767,2]
[423398642,1780084252000,-529.65392859,0.0001767,2]
[423398640,1780084252000,-162.74779167,0.0001767,2]
[423398637,1780084252000,-300.0,0.00012336,2]
[423398638,1780084252000,-300.0,0.00012336,2]
[423398635,1780084252000,-302.16,0.00012,2]
[423398633,1780084252000,-944.13844804,0.0001767,2]
[423398634,1780084252000,-1515.72056039,0.0001767,2]
[423398632,1780084252000,-524.52136002,0.0001767,2]
[423398636,1780084252000,-1294.64540696,0.00012126,2]
[423398630,1780084252000,-294.42337297,0.00017614,106]
[423398629,1780084252000,-3149.84195611,0.00017614,106]
[423398628,1780084252000,-244.0,0.0001747,2]
[423398626,1780084252000,-537.024,0.00017452,2]
[423398627,1780084252000,-1000.0,0.0001747,2]
[423398639,1780084252000,-1301.20807282,0.00012715,2]
[423398625,1780084252000,-678.0,0.00017399,2]
[423398624,1780084252000,-500.0,0.00017399,2]
[423398623,1780084252000,-171.45948956,0.0001737,2]
[423398631,1780084252000,-823.0019521,0.0001764,2]
[423405092,1780084911000,-5000.0,0.00010669,2]
[423406856,1780085404000,-6000000.0,0.00020743,30]
[423406857,1780085408000,-6000000.0,0.00020743,30]
[423406859,1780085411000,-642.0,0.00020743,30]
[423406858,1780085411000,-1839890.03038821,0.00020743,30]
[423406861,1780085411000,-3000.0,0.00020743,120]
[423406860,1780085411000,-1022.0,0.00020743,30]
[423406863,1780085411000,-235.93910801,0.00020743,120]
[423406862,1780085411000,-739.89315826,0.00020743,120]
[423406864,1780085411000,-246.0327766,0.00020743,120]
[423406865,1780085411000,-5000.0,0.00020743,30]
[423406866,1780085411000,-1281.00763406,0.00020743,120]
[423406867,1780085411000,-789.87986782,0.00020743,120]
[423406871,1780085411000,-398.2026144,0.00020743,120]
[423406869,1780085411000,-6957.8,0.00020743,120]
[423406868,1780085411000,-352.74430837,0.00020743,120]
[423406877,1780085411000,-477.41171678,0.00020743,120]
[423406876,1780085411000,-304.83315438,0.00020743,120]
[423406875,1780085411000,-477.41171678,0.00020743,120]
[423406878,1780085411000,-477.41171678,0.00020743,120]
[423406873,1780085411000,-213.97767994,0.00020743,30]
[423406870,1780085411000,-204.0,0.00020743,120]
[423406872,1780085411000,-400.0,0.00020743,30]
[423406874,1780085411000,-304.83315438,0.00020743,120]
[423406889,1780085412000,-477.41171678,0.00020743,120]
[423406896,1780085412000,-477.41171678,0.00020743,120]
[423406894,1780085412000,-477.41171678,0.00020743,120]
[423406893,1780085412000,-477.41171678,0.00020743,120]
[423406892,1780085412000,-477.41171678,0.00020743,120]
[423406895,1780085412000,-477.41171678,0.00020743,120]
[423406891,1780085412000,-477.41171678,0.00020743,120]
[423406890,1780085412000,-477.41171678,0.00020743,120]
[423406888,1780085412000,-477.41171678,0.00020743,120]
[423406883,1780085412000,-477.41171678,0.00020743,120]
[423406886,1780085412000,-477.41171678,0.00020743,120]
[423406885,1780085412000,-477.41171678,0.00020743,120]
[423406884,1780085412000,-477.41171678,0.00020743,120]
[423406881,1780085412000,-477.41171678,0.00020743,120]
[423406882,1780085412000,-477.41171678,0.00020743,120]
[423406880,1780085412000,-477.41171678,0.00020743,120]
[423406879,1780085412000,-477.41171678,0.00020743,120]
[423406897,1780085412000,-477.41171678,0.00020743,120]
[423406887,1780085412000,-477.41171678,0.00020743,120]
[423406898,1780085412000,-477.41171678,0.00020743,120]
[423406918,1780085412000,-20000.0,0.00020743,120]
[423406899,1780085412000,-477.41171678,0.00020743,120]
[423406919,1780085412000,-19000.0,0.00020743,120]
[423406917,1780085412000,-152.61249197,0.00020743,120]
[423406916,1780085412000,-152.61249197,0.00020743,120]
[423406915,1780085412000,-152.61249197,0.00020743,120]
[423406914,1780085412000,-152.61249197,0.00020743,120]
[423406913,1780085412000,-152.61249197,0.00020743,120]
[423406900,1780085412000,-477.41171678,0.00020743,120]
[423406911,1780085412000,-152.61249197,0.00020743,120]
[423406910,1780085412000,-152.61249197,0.00020743,120]
[423406912,1780085412000,-152.61249197,0.00020743,120]
[423406908,1780085412000,-5482.31101177,0.00020743,120]
[423406907,1780085412000,-152.41657718,0.00020743,120]
[423406906,1780085412000,-152.41657719,0.00020743,120]
[423406905,1780085412000,-477.41171678,0.00020743,120]
[423406904,1780085412000,-477.41171678,0.00020743,120]
[423406903,1780085412000,-477.41171678,0.00020743,120]
[423406902,1780085412000,-477.41171678,0.00020743,120]
[423406901,1780085412000,-477.41171678,0.00020743,120]
[423406909,1780085412000,-228.47970854,0.00020743,120]
[423406924,1780085413000,-286.00086553,0.00020743,120]
[423406920,1780085413000,-286.00086553,0.00020743,120]
[423406921,1780085413000,-215.54586856,0.00020743,120]
[423406922,1780085413000,-286.00086553,0.00020743,120]
[423406923,1780085413000,-286.00086553,0.00020743,120]
[423406925,1780085413000,-286.00086553,0.00020743,120]
[423406932,1780085413000,-250.0,0.00020743,30]
[423406927,1780085413000,-286.00086553,0.00020743,120]
[423406928,1780085413000,-286.00086553,0.00020743,120]
[423406929,1780085413000,-1466.16471688,0.00020743,30]
[423406930,1780085413000,-284.522101,0.00020743,120]
[423406931,1780085413000,-284.522101,0.00020743,60]
[423406933,1780085413000,-494.017742,0.00020743,30]
[423406926,1780085413000,-286.00086553,0.00020743,120]
[423406939,1780085431000,-500.0,0.00010996,2]
[423406940,1780085431000,-276.03627541,0.00010996,2]
[423406938,1780085431000,-500.0,0.00010996,2]
[423406937,1780085431000,-191.78235189,0.00010698,2]
[423406936,1780085431000,-10000.0,0.0001053,2]
[423406934,1780085431000,-5000.0,9.954e-05,2]
[423406935,1780085431000,-162.12731,0.00010055,2]
[423407010,1780085438000,-500.0,0.00010998,2]
[423407009,1780085438000,-223.96372459,0.00010996,2]
[423407014,1780085438000,-472.03627541,0.00010998,2]
[423407013,1780085438000,-500.0,0.00010998,2]
[423407011,1780085438000,-500.0,0.00010998,2]
[423407012,1780085438000,-500.0,0.00010998,2]
[423407078,1780085440000,-500.0,0.0001127,2]
[423407075,1780085440000,-300.0,0.00011214,2]
[423407077,1780085440000,-600.0,0.00011214,2]
[423407073,1780085440000,-300.0,0.00011214,2]
[423407059,1780085440000,-300.0,0.00011214,2]
[423407057,1780085440000,-300.0,0.00011214,2]
[423407055,1780085440000,-300.0,0.00011214,2]
[423407053,1780085440000,-75.26434926,0.00011214,2]
[423407036,1780085440000,-185.93022359,0.00011214,2]
[423407038,1780085440000,-300.0,0.00011214,2]
[423407025,1780085440000,-27.96372459,0.00010998,2]
[423407033,1780085440000,-114.06977641,0.00011214,2]
[423407031,1780085440000,-300.0,0.00011214,2]
[423407027,1780085440000,-356.06977641,0.00010998,2]
[423407029,1780085440000,-143.93022359,0.00010998,2]
[423407080,1780085440000,-347.44845994,0.00011272,2]
[423407040,1780085440000,-224.73565074,0.00011214,2]
[423407084,1780085440000,-500.0,0.00011544,2]
[423407061,1780085440000,-300.0,0.00011214,2]
[423407065,1780085440000,-300.0,0.00011214,2]
[423407069,1780085440000,-300.0,0.00011214,2]
[423407100,1780085440000,-500.0,0.00012094,2]
[423407104,1780085440000,-500.0,0.00012094,2]
[423407088,1780085440000,-233.38469551,0.00011994,2]
[423407094,1780085440000,-500.0,0.00012094,2]
[423407098,1780085440000,-536.89178431,0.00012094,2]
[423407092,1780085440000,-500.0,0.00012092,2]
[423407108,1780085440000,-642.73434847,0.00012094,2]
[423407102,1780085440000,-500.0,0.00012094,2]
[423407090,1780085440000,-207.02569721,0.00011994,2]
[423407096,1780085440000,-500.0,0.00012094,2]
[423407110,1780085440000,-500.0,0.00012094,2]
[423407086,1780085440000,-500.0,0.00011818,2]
[423407063,1780085440000,-300.0,0.00011214,2]
[423407071,1780085440000,-300.0,0.00011214,2]
[423407067,1780085440000,-300.0,0.00011214,2]
[423407106,1780085440000,-500.0,0.00012094,2]
[423407082,1780085440000,-500.0,0.00011272,2]
[423407152,1780085441000,-397.90699661,0.00012094,2]
[423407153,1780085441000,-500.0,0.00012094,2]
[423407155,1780085441000,-500.0,0.00012094,2]
[423407144,1780085441000,-500.0,0.00012094,2]
[423407143,1780085441000,-500.0,0.00012094,2]
[423407154,1780085441000,-500.0,0.00012094,2]
[423407141,1780085441000,-500.0,0.00012094,2]
[423407148,1780085441000,-500.0,0.00012094,2]
[423407137,1780085441000,-619.89,0.00012094,2]
[423407156,1780085441000,-266.02562041,0.00012094,2]
[423407139,1780085441000,-500.0,0.00012094,2]
[423407116,1780085441000,-500.0,0.00012094,2]
[423407132,1780085441000,-500.0,0.00012094,2]
[423407124,1780085441000,-500.0,0.00012094,2]
[423407130,1780085441000,-580.13231628,0.00012094,2]
[423407135,1780085441000,-500.0,0.00012094,2]
[423407128,1780085441000,-500.0,0.00012094,2]
[423407133,1780085441000,-500.0,0.00012094,2]
[423407122,1780085441000,-500.0,0.00012094,2]
[423407120,1780085441000,-500.0,0.00012094,2]
[423407114,1780085441000,-500.0,0.00012094,2]
[423407112,1780085441000,-500.0,0.00012094,2]
[423407146,1780085441000,-500.0,0.00012094,2]
[423407126,1780085441000,-500.0,0.00012094,2]
[423407149,1780085441000,-500.0,0.00012094,2]
[423407118,1780085441000,-500.0,0.00012094,2]
[423407147,1780085441000,-500.0,0.00012094,2]
[423407151,1780085441000,-102.09300339,0.00012094,2]
[423407179,1780085441000,-500.0,0.00012368,2]
[423407177,1780085441000,-298.94474749,0.00012368,2]
[423407180,1780085441000,-273.94474749,0.00012368,2]
[423407176,1780085441000,-500.0,0.00012368,2]
[423407174,1780085441000,-500.0,0.00012368,2]
[423407173,1780085441000,-367.84821196,0.00012368,2]
[423407175,1780085441000,-500.0,0.00012368,2]
[423407172,1780085441000,-500.0,0.00012368,2]
[423407170,1780085441000,-644.18,0.00012368,2]
[423407171,1780085441000,-500.0,0.00012368,2]
[423407169,1780085441000,-500.0,0.00012368,2]
[423407178,1780085441000,-201.05525251,0.00012368,2]
[423407163,1780085441000,-500.0,0.00012094,2]
[423407150,1780085441000,-500.0,0.00012094,2]
[423407157,1780085441000,-500.0,0.00012094,2]
[423407158,1780085441000,-500.0,0.00012094,2]
[423407162,1780085441000,-500.0,0.00012094,2]
[423407164,1780085441000,-175.92,0.00012094,2]
[423407160,1780085441000,-500.0,0.00012094,2]
[423407161,1780085441000,-500.0,0.00012094,2]
[423407159,1780085441000,-500.0,0.00012094,2]
[423407167,1780085441000,-720.0,0.00012335,2]
[423407166,1780085441000,-500.0,0.00012094,2]
[423407165,1780085441000,-500.0,0.00012094,2]
[423407168,1780085441000,-500.0,0.00012366,2]
[423407217,1780085443000,-500.0,0.00012368,2]
[423407211,1780085443000,-500.0,0.00012368,2]
[423407216,1780085443000,-428.49053664,0.00012368,2]
[423407221,1780085443000,-335.45,0.00012368,2]
[423407223,1780085443000,-500.0,0.00012368,2]
[423407219,1780085443000,-500.0,0.00012368,2]
[423407218,1780085443000,-261.40364311,0.00012368,2]
[423407222,1780085443000,-500.0,0.00012368,2]
[423407215,1780085443000,-500.0,0.00012368,2]
[423407220,1780085443000,-500.0,0.00012368,2]
[423407214,1780085443000,-500.0,0.00012368,2]
[423407206,1780085443000,-500.0,0.00012368,2]
[423407213,1780085443000,-500.0,0.00012368,2]
[423407210,1780085443000,-322.93586196,0.00012368,2]
[423407208,1780085443000,-500.0,0.00012368,2]
[423407207,1780085443000,-500.0,0.00012368,2]
[423407209,1780085443000,-500.0,0.00012368,2]
[423407205,1780085443000,-500.0,0.00012368,2]
[423407203,1780085443000,-500.0,0.00012368,2]
[423407204,1780085443000,-500.0,0.00012368,2]
[423407201,1780085443000,-226.05525251,0.00012368,2]
[423407202,1780085443000,-500.0,0.00012368,2]
[423407226,1780085443000,-500.0,0.00012642,2]
[423407212,1780085443000,-209.8944253,0.00012368,2]
[423407227,1780085443000,-500.0,0.00012642,2]
[423407232,1780085443000,-500.0,0.00012642,2]
[423407252,1780085443000,-1000.0,0.00013699,2]
[423407253,1780085443000,-198.524461,0.00013699,2]
[423407229,1780085443000,-357.19026645,0.00012642,2]
[423407247,1780085443000,-428.55616274,0.00013304,2]
[423407251,1780085443000,-864.0,0.00013569,2]
[423407248,1780085443000,-1268.3701163,0.00013304,2]
[423407250,1780085443000,-586.36,0.00013464,2]
[423407249,1780085443000,-175.69,0.00013464,2]
[423407243,1780085443000,-256.38008883,0.0001319,2]
[423407245,1780085443000,-500.0,0.0001319,2]
[423407242,1780085443000,-320.57500106,0.00012916,2]
[423407244,1780085443000,-243.61991117,0.0001319,2]
[423407246,1780085443000,-152.0,0.00013301,7]
[423407241,1780085443000,-500.0,0.00012916,2]
[423407230,1780085443000,-500.0,0.00012642,2]
[423407240,1780085443000,-500.0,0.00012916,2]
[423407224,1780085443000,-628.02,0.00012368,2]
[423407228,1780085443000,-500.0,0.00012642,2]
[423407231,1780085443000,-500.0,0.00012642,2]
[423407225,1780085443000,-500.0,0.0001264,2]
[423407235,1780085443000,-500.0,0.00012642,2]
[423407238,1780085443000,-93.49138808,0.00012914,2]
[423407237,1780085443000,-314.79079107,0.00012914,2]
[423407239,1780085443000,-238.9,0.00012916,2]
[423407236,1780085443000,-226.30317523,0.00012698,2]
[423407267,1780085444000,-617.50005317,0.00015302,2]
[423407279,1780085444000,-244.0,0.00016418,2]
[423407275,1780085444000,-173.74106975,0.00016025,2]
[423407280,1780085444000,-295.34482191,0.00016698,2]
[423407273,1780085444000,-397.71329357,0.00015614,2]
[423407271,1780085444000,-445.73675705,0.00015568,5]
[423407269,1780085444000,-1414.0,0.00015526,2]
[423407262,1780085444000,-185.0,0.00014693,2]
[423407265,1780085444000,-349.43434824,0.00014926,2]
[423407264,1780085444000,-650.56565176,0.00014926,2]
[423407270,1780085444000,-2205.0,0.00015526,2]
[423407263,1780085444000,-260.82399857,0.00014698,2]
[423407260,1780085444000,-445.384,0.00014693,2]
[423407268,1780085444000,-166.71891545,0.00015302,2]
[423407261,1780085444000,-189.0,0.00014693,2]
[423407259,1780085444000,-308.75002659,0.00014523,2]
[423407257,1780085444000,-160.0,0.00013821,2]
[423407258,1780085444000,-154.37501329,0.00013822,2]
[423407254,1780085444000,-160.0,0.0001382,2]
[423407256,1780085444000,-160.0,0.00013821,2]
[423407255,1780085444000,-160.0,0.0001382,2]
[423407266,1780085444000,-463.12503988,0.00014991,2]
[423407281,1780085444000,-181.74962906,0.00016847,2]
[423407292,1780085444000,-443.0,0.00017693,2]
[423407274,1780085444000,-222.79793025,0.00016025,2]
[423407299,1780085444000,-800.0,0.00017915,2]
[423407294,1780085444000,-804.65983701,0.00017706,2]
[423407298,1780085444000,-1703.10775417,0.00017831,2]
[423407296,1780085444000,-3169.29396502,0.00017815,2]
[423407295,1780085444000,-800.0,0.0001779,2]
[423407289,1780085444000,-177.15562862,0.0001767,2]
[423407290,1780085444000,-318.88013151,0.0001767,2]
[423407291,1780085444000,-566.89801157,0.0001767,2]
[423407286,1780085444000,-200.0,0.000171,2]
[423407288,1780085444000,-548.66796807,0.0001764,2]
[423407300,1780085444000,-113.99306413,0.00018,2]
[423407284,1780085444000,-704.39202024,0.00016847,2]
[423407297,1780085444000,-1096.15960045,0.00017815,2]
[423407272,1780085444000,-374.1617729,0.00015614,2]
[423407277,1780085444000,-404.29114951,0.00016082,2]
[423407276,1780085444000,-521.95893025,0.00016082,2]
[423407278,1780085444000,-1000.0,0.00016418,2]
[423407282,1780085444000,-1829.46810198,0.00016847,2]
[423407283,1780085444000,-1317.47667116,0.00016847,2]
[423407293,1780085444000,-185.0,0.00017693,2]
[423407287,1780085444000,-151.0,0.00017287,2]
[423407285,1780085444000,-1781.16408117,0.00017071,5]
[423407303,1780085446000,-5442.32596023,0.00018,2]
[423407302,1780085446000,-585.22942909,0.00018,2]
[423407305,1780085446000,-3227.303843,0.00018,2]
[423407307,1780085446000,-2982.89441293,0.00018,2]
[423407306,1780085446000,-228764.82744292,0.00018,2]
[423407304,1780085446000,-799.65154018,0.00018,2]
[423407313,1780085610000,190.0,0.0002,120]
[423407319,1780085712000,481.0,0.00019285,120]
[423407320,1780085713000,481.0,0.00020249,120]
[423407323,1780085750000,166.0,0.00018524,120]
[423407324,1780085752000,166.0,0.0001945,120]
[423407325,1780085753000,166.0,0.00020423,120]
[423407335,1780085873000,211.0,0.0002,120]
[423407341,1780086009000,536.97,0.00020249,120]
[423407342,1780086024000,289.0,0.00019482,120]
[423407343,1780086026000,289.0,0.00020456,120]
[423407369,1780086132000,369.83110639,0.00020547,120]
[423407370,1780086137000,1986.7139188,0.0002,120]
[423407375,1780086187000,2662.88599772,0.00019761,120]
[423407376,1780086187000,2905.54734818,0.00020393,120]
[423407374,1780086187000,2094.69785117,0.00018497,120]
[423407373,1780086187000,2378.79192445,0.00019129,120]
[423407387,1780086327000,202.0,0.00019528,120]
[423407388,1780086328000,202.0,0.00020505,120]
[423407421,1780086625000,177.0,0.00019535,120]
[423407422,1780086627000,177.0,0.00020512,120]
[423407449,1780086632000,-835.91665979,8.722e-05,2]
[423407450,1780086632000,-3793.99142329,8.81e-05,2]
[423407671,1780086640000,-500.0,9.304e-05,2]
[423407659,1780086640000,-500.0,9.304e-05,2]
[423407676,1780086640000,-439.17339476,9.304e-05,2]
[423407678,1780086640000,-500.0,9.304e-05,2]
[423407681,1780086640000,-500.0,9.304e-05,2]
[423407680,1780086640000,-500.0,9.304e-05,2]
[423407691,1780086640000,-500.0,9.304e-05,2]
[423407679,1780086640000,-500.0,9.304e-05,2]
[423407661,1780086640000,-500.0,9.304e-05,2]
[423407682,1780086640000,-500.0,9.304e-05,2]
[423407690,1780086640000,-500.0,9.304e-05,2]
[423407654,1780086640000,-693.71,9.304e-05,2]
[423407673,1780086640000,-500.0,9.304e-05,2]
[423407657,1780086640000,-500.0,9.304e-05,2]
[423407663,1780086640000,-500.0,9.304e-05,2]
[423407683,1780086640000,-500.0,9.304e-05,2]
[423407669,1780086640000,-500.0,9.304e-05,2]
[423407665,1780086640000,-500.0,9.304e-05,2]
[423407656,1780086640000,-1562.37,9.304e-05,2]
[423407643,1780086640000,-300.0,9.122e-05,2]
[423407645,1780086640000,-3814.30959629,9.123e-05,2]
[423407639,1780086640000,-1206.00857671,8.81e-05,2]
[423407641,1780086640000,-193.99397715,9.035e-05,2]
[423407652,1780086640000,-727.3916125,9.265e-05,2]
[423407650,1780086640000,-6185.69040371,9.123e-05,2]
[423407667,1780086640000,-500.0,9.304e-05,2]
[423407686,1780086640000,-500.0,9.304e-05,2]
[423407674,1780086640000,-500.0,9.304e-05,2]
[423407687,1780086640000,-500.0,9.304e-05,2]
[423407713,1780086640000,-300.0,9.305e-05,2]
[423407715,1780086640000,-300.0,9.305e-05,2]
[423407714,1780086640000,-300.0,9.305e-05,2]
[423407712,1780086640000,-300.0,9.305e-05,2]
[423407709,1780086640000,-1274.28,9.304e-05,2]
[423407704,1780086640000,-500.93,9.304e-05,2]
[423407707,1780086640000,-500.0,9.304e-05,2]
[423407710,1780086640000,-500.0,9.305e-05,2]
[423407702,1780086640000,-500.0,9.304e-05,2]
[423407711,1780086640000,-300.0,9.305e-05,2]
[423407705,1780086640000,-500.0,9.304e-05,2]
[423407703,1780086640000,-622.62,9.304e-05,2]
[423407706,1780086640000,-1027.08,9.304e-05,2]
[423407701,1780086640000,-500.0,9.304e-05,2]
[423407700,1780086640000,-751.15,9.304e-05,2]
[423407708,1780086640000,-650.44,9.304e-05,2]
[423407685,1780086640000,-500.0,9.304e-05,2]
[423407684,1780086640000,-500.0,9.304e-05,2]
[423407689,1780086640000,-500.0,9.304e-05,2]
[423407692,1780086640000,-500.0,9.304e-05,2]
[423407694,1780086640000,-271.83500935,9.304e-05,2]
[423407688,1780086640000,-500.0,9.304e-05,2]
[423407698,1780086640000,-557.81,9.304e-05,2]
[423407696,1780086640000,-500.0,9.304e-05,2]
[423407697,1780086640000,-500.0,9.304e-05,2]
[423407695,1780086640000,-500.0,9.304e-05,2]
[423407699,1780086640000,-500.0,9.304e-05,2]
[423407693,1780086640000,-500.0,9.304e-05,2]
[423407755,1780086641000,-1073.85328152,9.851e-05,2]
[423407756,1780086641000,-1073.85328152,9.851e-05,2]
[423407759,1780086641000,-1562.37,9.852e-05,2]
[423407757,1780086641000,-1073.85328152,9.851e-05,2]
[423407754,1780086641000,-1073.85328152,9.851e-05,2]
[423407762,1780086641000,-500.0,9.852e-05,2]
[423407751,1780086641000,-1073.85328152,9.851e-05,2]
[423407752,1780086641000,-1073.85328152,9.851e-05,2]
[423407753,1780086641000,-1073.85328152,9.851e-05,2]
[423407750,1780086641000,-1073.85328152,9.851e-05,2]
[423407761,1780086641000,-557.81,9.852e-05,2]
[423407758,1780086641000,-693.71,9.852e-05,2]
[423407747,1780086641000,-1073.85328152,9.851e-05,2]
[423407776,1780086641000,-500.0,9.998e-05,2]
[423407763,1780086641000,-751.15,9.852e-05,2]
[423407766,1780086641000,-622.62,9.852e-05,2]
[423407771,1780086641000,-650.44,9.852e-05,2]
[423407770,1780086641000,-500.0,9.852e-05,2]
[423407765,1780086641000,-500.0,9.852e-05,2]
[423407772,1780086641000,-1274.28,9.852e-05,2]
[423407769,1780086641000,-1027.08,9.852e-05,2]
[423407774,1780086641000,-500.0,9.998e-05,2]
[423407767,1780086641000,-500.93,9.852e-05,2]
[423407775,1780086641000,-1566.91,9.998e-05,2]
[423407773,1780086641000,-500.0,9.853e-05,2]
[423407768,1780086641000,-500.0,9.852e-05,2]
[423407741,1780086641000,-1274.28,9.578e-05,2]
[423407764,1780086641000,-500.0,9.852e-05,2]
[423407744,1780086641000,-1073.85328152,9.851e-05,2]
[423407734,1780086641000,-500.0,9.578e-05,2]
[423407745,1780086641000,-1073.85328152,9.851e-05,2]
[423407723,1780086641000,-300.0,9.305e-05,2]
[423407721,1780086641000,-300.0,9.305e-05,2]
[423407716,1780086641000,-300.0,9.305e-05,2]
[423407722,1780086641000,-300.0,9.305e-05,2]
[423407720,1780086641000,-300.0,9.305e-05,2]
[423407717,1780086641000,-300.0,9.305e-05,2]
[423407718,1780086641000,-300.0,9.305e-05,2]
[423407719,1780086641000,-300.0,9.305e-05,2]
[423407724,1780086641000,-300.0,9.305e-05,2]
[423407728,1780086641000,-1562.37,9.578e-05,2]
[423407726,1780086641000,-600.0,9.49e-05,2]
[423407729,1780086641000,-500.0,9.578e-05,2]
[423407727,1780086641000,-693.71,9.578e-05,2]
[423407730,1780086641000,-557.81,9.578e-05,2]
[423407733,1780086641000,-500.0,9.578e-05,2]
[423407732,1780086641000,-751.15,9.578e-05,2]
[423407731,1780086641000,-500.0,9.578e-05,2]
[423407779,1780086641000,-500.0,9.998e-05,2]
[423407725,1780086641000,-300.0,9.305e-05,2]
[423407735,1780086641000,-622.62,9.578e-05,2]
[423407736,1780086641000,-500.93,9.578e-05,2]
[423407738,1780086641000,-1027.08,9.578e-05,2]
[423407749,1780086641000,-1073.85328152,9.851e-05,2]
[423407748,1780086641000,-1073.85328152,9.851e-05,2]
[423407737,1780086641000,-500.0,9.578e-05,2]
[423407740,1780086641000,-650.44,9.578e-05,2]
[423407742,1780086641000,-500.0,9.579e-05,2]
[423407743,1780086641000,-500.0,9.851e-05,2]
[423407739,1780086641000,-500.0,9.578e-05,2]
[423407746,1780086641000,-615.96609786,9.851e-05,2]
[423407777,1780086641000,-513.74,9.998e-05,2]
[423407760,1780086641000,-500.0,9.852e-05,2]
[423407780,1780086641000,-500.0,9.998e-05,2]
[423407815,1780086641000,-151.0,0.0001,2]
[423407814,1780086641000,-151.0,0.0001,2]
[423407825,1780086641000,-751.15,0.00010126,2]
[423407826,1780086641000,-500.0,0.00010126,2]
[423407816,1780086641000,-151.0,0.0001,2]
[423407817,1780086641000,-151.0,0.0001,2]
[423407819,1780086641000,-169.0,0.00010035,2]
[423407823,1780086641000,-557.81,0.00010126,2]
[423407821,1780086641000,-1562.37,0.00010126,2]
[423407818,1780086641000,-151.0,0.0001,2]
[423407822,1780086641000,-500.0,0.00010126,2]
[423407820,1780086641000,-693.71,0.00010126,2]
[423407824,1780086641000,-500.0,0.00010126,2]
[423407827,1780086641000,-500.0,0.00010126,2]
[423407831,1780086641000,-1027.08,0.00010126,2]
[423407830,1780086641000,-500.0,0.00010126,2]
[423407829,1780086641000,-500.93,0.00010126,2]
[423407828,1780086641000,-622.62,0.00010126,2]
[423407832,1780086641000,-500.0,0.00010126,2]
[423407834,1780086641000,-1274.28,0.00010126,2]
[423407833,1780086641000,-650.44,0.00010126,2]
[423407837,1780086641000,-1566.91,0.00010272,2]
[423407838,1780086641000,-500.0,0.00010272,2]
[423407836,1780086641000,-500.0,0.00010272,2]
[423407835,1780086641000,-500.0,0.00010127,2]
[423407839,1780086641000,-513.74,0.00010272,2]
[423407841,1780086641000,-500.0,0.00010272,2]
[423407840,1780086641000,-500.0,0.00010272,2]
[423407778,1780086641000,-500.0,9.998e-05,2]
[423407809,1780086641000,-151.0,0.0001,2]
[423407812,1780086641000,-151.0,0.0001,2]
[423407842,1780086641000,-500.0,0.00010272,2]
[423407811,1780086641000,-151.0,0.0001,2]
[423407813,1780086641000,-151.0,0.0001,2]
[423407788,1780086641000,-500.0,9.999e-05,2]